Cogmind - Beta 16 @@@ ROGUE MODE // 2025.11.29 @ 03:46:54 Player: Duduxx Result: Destroyed by Y-54 Guardian with Gatling Laser Performance ------------- Evolutions (0) 0 Regions Visited (3) 600 Robots Destroyed (23) 115 Value Destroyed (687) 687 Prototype IDs (12) 240 Alien Tech Used (0) 0 Bonus (0) 0 TOTAL SCORE: 1642 Bonus ------- None Cogmind --------- Core Integrity 0/250 Matter 208/300 Energy 100/100 System Corruption 0% Temperature Cool (12) Movement Walking (130) Location -7/Recycling Parts ------- > --- POWER (1) -------- (None) > --- PROPULSION (2) --- Cargo Legs > --- UTILITY (2) ------ Large Storage Unit Structural Scanner > --- WEAPON (2) ------- Battle Rifle Battle Cannon > --- INVENTORY (15) --- Subdweller Power Source Subdweller Monowheel Subdweller Monowheel Subdweller Monowheel Subdweller Monowheel Disposable Heat Sink Small Storage Unit Improved Terrain Scanner Light Armor Plating Makeshift Hacking Suite Makeshift System Shield Riot Gun Battle Cannon Subdweller Shrapnel Launcher Subdweller Shrapnel Launcher Peak State ------------ > --- POWER ------------ Subdweller Power Source > --- PROPULSION ------- Cargo Legs > --- UTILITY ---------- Large Storage Unit Structural Scanner Scrap Shield > --- WEAPON ----------- Battle Rifle Battle Cannon > --- INVENTORY -------- Light Ion Engine Compact Wheel Compact Wheel Subdweller Monowheel Subdweller Monowheel Disposable Heat Sink Small Storage Unit Improved Terrain Scanner Light Armor Plating Makeshift Hacking Suite Makeshift System Shield Riot Gun Battle Cannon Subdweller Shrapnel Launcher Subdweller Shrapnel Launcher [Rating: 31] Favorites ----------- Power Subdweller Power Source Engine Subdweller Power Source Propulsion Light Treads Treads Light Treads Leg Cargo Legs Utility Large Storage Unit Device Structural Scanner Storage Large Storage Unit Protection Scrap Shield Weapon Assault Rifle Energy Gun EM Pulse Gun Ballistic Gun Assault Rifle Ballistic Cannon Battle Cannon Build | -11 -10 -10 -7 ------- Run | Yrd Mat Sub Rec Slots Evolved . | . . . . Power . | . . . . Propulsion . | . . . . Utility . | . . . . Weapon . | . . . . Parts Attached 19 | 7 2 10 . Power 3 | 1 . 2 . Engine 3 | 1 . 2 . Core . | . . . . Reactor . | . . . . Propulsion 4 | 2 . 2 . Treads 3 | 2 . 1 . Leg 1 | . . 1 . Wheel . | . . . . Hover . | . . . . Flight . | . . . . Utility 5 | 2 2 1 . Device 2 | 1 1 . . Storage 2 | 1 1 . . Processor . | . . . . Hackware . | . . . . Protection 1 | . . 1 . Artifact . | . . . . Weapon 7 | 2 . 5 . Energy Gun 4 | 1 . 3 . Energy Cannon . | . . . . Ballistic Gun 2 | 1 . 1 . Ballistic Cannon 1 | . . 1 . Launcher . | . . . . Special Weapon . | . . . . Impact Weapon . | . . . . Slashing Weapon . | . . . . Piercing Weapon . | . . . . Special Melee Weapon . | . . . . Unidentified Prototypes . | . . . . Parts Lost 5 | . . 4 1 Power 2 | . . 1 1 Propulsion . | . . . . Utility 1 | . . 1 . Weapon 2 | . . 2 . Highest Loss Streak 2 | . . 2 1 To Critical Strikes . | . . . . Average Backups 11 | 2 5 12 15 Power 1 | . 1 1 1 Propulsion 2 | 1 2 3 4 Utility 4 | . 1 5 6 Weapon 2 | . 1 3 4 Tool/Special . | . . . . Unused Backups 16 | . . 4 12 Power 3 | . . 2 1 Propulsion 6 | . . 2 4 Utility 4 | . . . 4 Weapon 3 | . . . 3 Tool/Special . | . . . . Average Slot Usage (%) 93 | . 100 93 85 Engine 13 | . 14 13 14 Treads 19 | . 28 18 . Leg 3 | . . 4 14 Device 13 | . 14 13 14 Storage 13 | . 14 13 14 Protection 1 | . . 1 . Energy Gun 8 | . 14 8 . Ballistic Gun 13 | . 14 13 14 Ballistic Cannon 5 | . . 5 14 Peak Build Rating 31 | 9 9 31 27 Average Rating 15 | 5 8 16 27 On Entrance 10 | . 9 7 27 Avg Prop Armor Cover (%) . | . . . . Naked Turns . | . . . . Heaviest Build 49 | 13 28 49 31 Greatest Support 55 | 40 40 55 55 Greatest Overweight (x) 1 | . . 1 . Average Overweight (x) . | . . . . Largest Inventory Capacity 15 | 8 15 15 15 Average Capacity 14 | 7 12 15 15 Most Carried 15 | 4 7 15 15 Average Carried 11 | 2 5 12 15 Final Capacity 15 | 8 15 15 15 Final Carried 15 | 4 7 15 15 Class Distribution -------------------- 100% | Mutant Dominant Class ---------------- Mutant | -10/Materials Mutant | -10/Subcaves Mutant | -7/Recycling Resources | -11 -10 -10 -7 ----------- Run | Yrd Mat Sub Rec Matter Collected 906 | 288 . 618 . Remotely . | . . . . Salvage Created 801 | 136 . 665 . Parts 40 | 7 . 33 . Haulers Intercepted . | . . . . Recyclers Shooed . | . . . . Parts Field Recycled . | . . . . Retrieved Matter . | . . . . Parts Self-Destructed 13 | . . 13 . Prevented 1 | . . 1 . Parts Restored . | . . . . Kills | -11 -10 -10 -7 ------- Run | Yrd Mat Sub Rec Combat Hostiles Destroyed 18 | . . 18 . Guns 10 | . . 10 . Cannons 8 | . . 8 . Classes Destroyed 7 | 2 . 5 . Tunneler 2 | 2 . . . Recycler 1 | 1 . . . Turret 2 | . . 2 . Swarmer 4 | . . 4 . Grunt 4 | . . 4 . Sentry 1 | . . 1 . Subdweller 9 | . . 9 . Best Kill Streak 5 | 3 . 5 . Combat Bots Only 4 | . . 4 . Max Kills in Single Turn 1 | 1 . 1 . Gunslinging . | . . . . Exploded . | . . . . Melee . | . . . . Uniques/NPCs Destroyed . | . . . . Combat | -11 -10 -10 -7 -------- Run | Yrd Mat Sub Rec Hostile Shots Fired 150 | . . 147 3 Missed 59 | . . 58 1 Hits 91 | . . 89 2 Projectile 91 | . . 89 2 AOE 1 | . . 1 . Critical Strikes 1 | . . 1 . Damage Taken 1457 | 37 . 1398 22 Core 257 | . . 247 10 Absorbed by Shields . | . . . . Core Remaining (%) 100 | 100 . . . Volleys Fired 101 | 6 1 94 . Largest 2 | 2 2 2 . Hottest 83 | 60 60 83 . Shots Fired 201 | 12 2 187 . Gun 143 | 12 2 129 . Cannon 58 | . . 58 . Launcher . | . . . . Special . | . . . . Kinetic 158 | 6 1 151 . Thermal . | . . . . Explosive . | . . . . Electromagnetic 43 | 6 1 36 . Robot Hit Streak 11 | 8 2 11 . Robot Miss Streak 5 | 1 1 5 . Penetration Max . | . . . . Secondary Targets . | . . . . Shots Hit Robots 114 | 10 1 103 . Core Hits 42 | 4 1 37 . Critical Kills . | . . . . Critical Parts Destroyed . | . . . . Critical Strikes 3 | . . 3 . Destroy 1 | . . 1 . Blast 2 | . . 2 . Melee Attacks . | . . . . Impact . | . . . . Slashing . | . . . . Piercing . | . . . . Sneak Attacks . | . . . . Combat Hostiles . | . . . . Follow-up Attacks . | . . . . Damage Inflicted 1916 | 167 26 1723 . Guns 1180 | 120 24 1036 . Cannons 687 | . . 687 . Explosions 42 | 42 . . . Melee . | . . . . Ramming 7 | 5 2 . . Kinetic 1408 | 67 . 1341 . Thermal 42 | 42 . . . Explosive . | . . . . Electromagnetic 459 | 53 24 382 . Impact . | . . . . Slashing . | . . . . Piercing . | . . . . Highest Corruption . | . . . . Average Corruption . | . . . . Corruption Purged . | . . . . Corruption Blocked . | . . . . Overload Shots . | . . . . Overflow Damage . | . . . . Projectiles . | . . . . Explosions . | . . . . Melee . | . . . . Knockbacks 7 | . . 7 . Impact . | . . . . Kinetic 7 | . . 7 . Secondary . | . . . . Self-Inflicted Damage 37 | 37 . . . Shots 1 | 1 . . . Rammed 3 | 2 1 . . Targets Rammed 3 | 2 1 . . Kicked . | . . . . Crushed . | . . . . Highest Temperature 13 | 12 . 13 . Average Temperature 7 | 12 . 5 . Received Heat Transfer 456 | . . 444 12 Siege Activations . | . . . . Martial Activations . | . . . . Shielding Activations . | . . . . Robots Disrupted . | . . . . Combat Hostiles . | . . . . Robots Corrupted . | . . . . Combat Hostiles . | . . . . Parts Fried 1 | . . 1 . Impact Corruptions . | . . . . Robots Melted . | . . . . Combat Hostiles . | . . . . Parts Melted 1 | . . 1 . Heat Transferred 50 | 50 . . . Parts Sabotaged . | . . . . Parts Stolen . | . . . . Parts Stripped . | . . . . Power Chain Reactions 1 | 1 . . . Alert | -11 -10 -10 -7 ------- Run | Yrd Mat Sub Rec Maximum Alert Level . | . . . . Low Security (%) 100 | 100 100 . 100 Level 1 . | . . . . Level 2 . | . . . . Level 3 . | . . . . Level 4 . | . . . . Level 5 . | . . . . High Security . | . . . . Max Security . | . . . . Peak Influence 94 | 5 . . 94 Initial 94 | . . . 94 Average 8 | 1 . . 89 Influence Increases 345 | 15 . 330 . Destroy 0b10 Robot/C 220 | . . 220 . Destroy 0b10 Robot/NC 15 | 15 . . . Destroy Leader 20 | . . 20 . Lose Combat Pursuer 90 | . . 90 . Influence Decreases 271 | 15 . 132 124 Entered New Map 104 | . . . 104 Time Decay 157 | 15 . 132 10 Lost Part 10 | . . . 10 Squads Dispatched 1 | . 1 . . Investigation . | . . . . Extermination . | . . . . Reinforcement 1 | . 1 . . Assault . | . . . . Garrison . | . . . . Intercept . | . . . . Searches Triggered . | . . . . Construction Impeded . | . . . . Haulers Reinforced . | . . . . Active Scanning Responses . | . . . . Cargo Convoy Interrupts . | . . . . Stealth | -11 -10 -10 -7 --------- Run | Yrd Mat Sub Rec Distress Signals . | . . . . Communications Jammed . | . . . . Distress Signals . | . . . . Times Spotted 29 | . 3 25 1 Peak Tracking Total 6 | . 3 6 1 Tactical Retreats 2 | . . 2 . Traps | -11 -10 -10 -7 ------- Run | Yrd Mat Sub Rec Traps Triggered . | . . . . Indirectly . | . . . . Trap Hack Attempts . | . . . . Triggered . | . . . . Disarmed . | . . . . Reprogrammed . | . . . . Reused . | . . . . Traps Extracted . | . . . . Installed . | . . . . Triggered . | . . . . Machines | -11 -10 -10 -7 ---------- Run | Yrd Mat Sub Rec Machines Disabled 3 | . . 3 . Max in Single Turn 1 | . . 1 . Machines Repaired . | . . . . Machines Dismantled . | . . . . Machines Sabotaged . | . . . . Overloaded Fab Kills . | . . . . Hacking | -11 -10 -10 -7 --------- Run | Yrd Mat Sub Rec Machines Accessed 2 | . 1 1 . Terminals 1 | . 1 . . Fabricators . | . . . . Repair Stations . | . . . . Recycling Units . | . . . . Scanalyzers . | . . . . Garrison Access . | . . . . Total Hacks 11 | . 2 9 . Successful 9 | . . 9 . Failed 2 | . 2 . . Catastrophic 2 | . 2 . . Database Lockouts . | . . . . Manual 2 | . 2 . . Terminals 2 | . 2 . . Fabricators . | . . . . Repair Stations . | . . . . Recycling Units . | . . . . Scanalyzers . | . . . . Garrison Access . | . . . . Terminal Hacks 9 | . . 9 . Record 8 | . . 8 . Proto ID Catalog 1 | . . 1 . Fabricator Hacks . | . . . . Repair Station Hacks . | . . . . Recycling Unit Hacks . | . . . . Scanalyzer . | . . . . Garrison Access Hacks . | . . . . Unauthorized Hacks . | . . . . Terminals . | . . . . Fabricators . | . . . . Repair Stations . | . . . . Recycling Units . | . . . . Scanalyzers . | . . . . Garrison Access . | . . . . Data Cores Recovered . | . . . . Used . | . . . . Hacking Detections 1 | . 1 . . Full Trace Events . | . . . . Feedback Events . | . . . . Feedback Blocked . | . . . . Robot Schematics Acquired . | . . . . Robots Built . | . . . . Authchips . | . . . . Time . | . . . . Total Robot Build Rating . | . . . . Part Schematics Acquired . | . . . . Parts Built . | . . . . Authchips . | . . . . Time . | . . . . Total Part Build Rating . | . . . . Part Studies Acquired . | . . . . Parts Repaired . | . . . . Time . | . . . . Parts Recycled . | . . . . Recycled Matter . | . . . . Retrieved Matter . | . . . . Retrieved Components . | . . . . Parts Scanalyzed . | . . . . Part Schematics Acquired . | . . . . Parts Damaged . | . . . . Bothacking | -11 -10 -10 -7 ------------ Run | Yrd Mat Sub Rec Used RIF Installer . | . . . . Robots Hacked . | . . . . Non-combat . | . . . . Combat . | . . . . Robot Hacks Applied . | . . . . Relay Couplers Released . | . . . . Fabnet Peak Effective % . | . . . . Robots Rewired . | . . . . Allies Hacked . | . . . . Hacks Repelled . | . . . . Allies | -11 -10 -10 -7 -------- Run | Yrd Mat Sub Rec Total Allies . | . . . . Largest Group . | . . . . Highest-Rated Group . | . . . . Highest-Rated Ally . | . . . . Total Orders . | . . . . Ally Attacks . | . . . . Total Damage . | . . . . Kills . | . . . . Allies Corrupted . | . . . . Allies Melted . | . . . . Intel | -11 -10 -10 -7 ------- Run | Yrd Mat Sub Rec Active Infowar (turns) 2528 | 13 285 2192 38 Terrain 173 | 13 160 . . Structural 2355 | . 125 2192 38 Robot Analysis Total . | . . . . Derelict Logs Recovered 2 | . . 2 . Drone Launches . | . . . . Drone Recoveries . | . . . . Exploration | -11 -10 -10 -7 ------------- Run | Yrd Mat Sub Rec Turns Passed 2622 | 105 287 2192 38 Spaces Moved 1451 | 46 143 1233 29 Core 3 | 3 . . . Treads 952 | 43 143 766 . Legs 496 | . . 467 29 Wheels . | . . . . Hover . | . . . . Flight . | . . . . Fastest Speed 50 | 50 160 130 130 Average Speed 149 | 152 160 148 130 Slowest Speed 240 | 160 160 240 130 Overloaded Moves . | . . . . Propulsion Burnouts . | . . . . Robots Hopped . | . . . . Potential Cave-ins . | . . . . Cave-ins Triggered . | . . . . Exploration Rate (%) 30 | 4 43 64 11 Regions Visited 3 Branch Regions 2 Pre-discovered Areas 1 | . . 1 . Known Exits Taken . | . . . . Unknown Exits Taken 3 | 1 1 1 . Scrap Searched 3 | . . 3 . Spaces Dug 1 | . . 1 . Terrain Destroyed 6 | 4 . 2 . Melee . | . . . . Projectile 2 | . . 2 . AOE 4 | 4 . . . Terrain Rammed . | . . . . Walls Destroyed . | . . . . Machines Disabled . | . . . . Actions | -11 -10 -10 -7 --------- Run | Yrd Mat Sub Rec Total 1704 | 64 198 1413 29 Wait 93 | . 50 43 . Move 1449 | 46 142 1232 29 Hop . | . . . . Pick Up 22 | 4 1 17 . Fast Attach 12 | 7 1 4 . Attach 5 | . . 5 . Detach 4 | . 1 3 . Swap 6 | . 1 5 . Drop 10 | . . 10 . Fire 101 | 6 1 94 . Melee . | . . . . Ram . | . . . . Kick . | . . . . Crush 2 | 1 1 . . Escape Stasis . | . . . . Rewire . | . . . . Trap . | . . . . Miscellaneous . | . . . . Route ------- -11/Scrapyard -10/Materials (discovered 3 exits: [*Mat] / [*Min] / *Sub) -10/Subcaves (discovered 2 exits: [*Mat] / *Rec) -7/Recycling History --------- Turn | Location | Event 2 | -11/Scrapyard | Met Revision 17 4 | -11/Scrapyard | Discovered new exit (range 16) 106 | -11/Scrapyard | Entered Materials 195 | -10/Materials | Discovered new exit (range 8) 287 | -10/Materials | Discovered new exit (range 13) 308 | -10/Materials | Build established: Mutant 366 | -10/Materials | Discovered new exit (range 10) 393 | -10/Materials | Entered Subcaves 401 | -10/Subcaves | Discovered new exit (range 7) 831 | -10/Subcaves | Shifting Twisted Machinery released Piercing Trap 859 | -10/Subcaves | Shifting Twisted Machinery released Riot Gun 1167 | -10/Subcaves | Ambushed by Subdwellers from Twisted Machinery 1179 | -10/Subcaves | Core integrity fell below 50% 1484 | -10/Subcaves | A swath of the cavern ceiling suddenly collapsed 1760 | -10/Subcaves | Visited 4L-MR0's lab 1822 | -10/Subcaves | Found Cargo Legs 1824 | -10/Subcaves | Attached Cargo Legs, gained temporary slots: Utility x2 2317 | -10/Subcaves | Learned 8 Materials zone layouts 2461 | -10/Subcaves | Discovered new exit (range 11) 2495 | -10/Subcaves | Core integrity fell below 20% 2497 | -10/Subcaves | Learned location of Storage (-7) 2585 | -10/Subcaves | Entered Recycling 2623 | -7/Recycling | Destroyed by Y-54 Guardian with Gatling Laser Last Messages --------------- 02502_ S-10 Pest destroyed. 02506_ Lgt. Assault Rifle fries itself beyond repair. 02507_ Lgt. Ion Engine fries itself beyond repair. 02511_ Flight Unit fries itself beyond repair. 02519_ Destroyed Autobeam. 02525_ Autobeam Turret destroyed. 02528_ Acquired 8 matter. 02573_ Acquired 2 matter. 02575_ Acquired 11 matter. 02580_ Acquired 15 matter. 02582_ Acquired 2 matter. 02584_ Acquired 5 matter. LOCATION=UNKNOWN GOAL=ESCAPE 02591_ Connecting with Recycling Unit... 02591_ Current location identified: Recycling 02623_ Y-54 Guardian springs to life. 02623_ Sub. Power Source destroyed. Map ----- +----------------------------------------------------+ | ????????????????????????????????## # ??????????? | | ????????????????????????????????## # ??????????? | | ???????????????????????????????? # # ??????????? | | ???????????????????????????????? # # ??????????? | | ???????????????????????????????? + + ??????????? | | ???????????????????????????????? # # ??????????? | | ???????????????????????????????? # # ??????????? | | ????????????????????????????????## # ??????????? | | ???????????? ??????????????????## # ??????????? | | ????????????? ??????? ####### ##??????????? | | ????????????? ??????############ ####????????? | | ????????????? ?????## # ####????????? | | ??????????"??""" ###?## # ""##????????? | | ????????##" """ ###### """ """ # Y"##????????? | | ????????##" """ #Y#### """ """ + ""##????????? | | ????????##T + """ """ # ####????????? | | ????????##" # # ####????????? | | ????????##" """ # # ##??????????? | | ????????##" """ + # ##??????????? | | ?????????## """ ########### ##??????????? | | ?????????## ################??????????? | | ??????? #################????????? | | ???????? ############## #######Y#########????????? | | ????????+############## ##????????? | | ?????????????????????## ????????? | | ?????????????????????## @ ????????? | | ?????????????????????## ????????? | | ?????????????????????## ????????? | | ?????????????????????#############%%%####????????? | | ?????????????????????############# ?%####????????? | | ????????????????????????????????????###??????????? | | ?????????????????????????????????????????????????? | | | | | | | | | | | | | | | | | | | | | | | | | | | | | | | | | | | | | +----------------------------------------------------+ Best States ------------- Heat Dissipation 25 Energy Generation 15 Energy Capacity 200 Matter Stores 300 Matter Capacity 300 Sight Range 16 Terrain Scan Range 16 Terrain Scan Density 10 Armor Coverage 800 Evasion (%) 55 Recoil Reduction 2 Item Schematics ----------------- None Robot Schematics ------------------ None Fabricated ------------ Nothing Repaired ---------- Nothing Studied --------- None Alien Tech Used ----------------- None Achievements -------------- Mistaken Identity You Again Challenges ------------ None Game ------ Seed ImpactShockFlightbrick Manual? 0 Play Time 00:18:32 Cumulative 123.4 hours Start 2025.11.29 @ 03:22:22 End 2025.11.29 @ 03:46:54 Sessions 1 Manual Loads 0 Difficulty Rogue Special Mode None Game No. 237 Rogue 237 Adventurer 0 Explorer 0 Win Type - Total 0 Types 0/0/0/0/0/0/0/0/0/0 Lore% 31 Gallery% 48 Achievement% 22 Wizard Run 0 Options --------- Layout 1 ASCII 0 Keyboard 1 Movement Arrows Keybinds 0 Fullscreen 2 Font 24/Smallcaps Map View 50x35 Zoom Use 0% Tactical HUD 1 Map Filters NONE Filters NONE Steam 1 RUN: d46f3481-1283-405c-9a9d-6941b3e7d62e